Department Family,Entity,Date,Expense Type,Expense Area,Supplier,Transaction Number,AP Amount,VAT Registration Number,Purchase Invoice Number
Department of Health,BRIDGEWATER COMMUNITY HEALTHCARE,31-Oct-14,Drugs,Medicines Management - WARR,NHS BUSINESS SERVICES AUTHORITY,17787828,"79,438.12",654434729,1000039956
Department of Health,BRIDGEWATER COMMUNITY HEALTHCARE,31-Oct-14,Drugs,Medicines Management - WARR,NHS BUSINESS SERVICES AUTHORITY,17787829,"81,345.51",654434729,1000040319
Department of Health,BRIDGEWATER COMMUNITY HEALTHCARE,31-Oct-14,Services Received - CSU's,Informatics - WARR,NHS CHESHIRE AND MERSEYSIDE CSU,17787830,"88,075.44",,7310303126
Department of Health,BRIDGEWATER COMMUNITY HEALTHCARE,31-Oct-14,Drugs,Medicines Management - WARR,NHS BUSINESS SERVICES AUTHORITY,17787831,"74,879.54",654434729,1000040685
Department of Health,BRIDGEWATER COMMUNITY HEALTHCARE,31-Oct-14,Services Received - NHSTs,Computing - ALW,ST HELENS AND KNOWSLEY HOSPITALS NHS TRUST,17787833,"163,666.67",654943996,16750105
Department of Health,BRIDGEWATER COMMUNITY HEALTHCARE,31-Oct-14,Contr Other External,Minor Injury Unit StH,MILLENIUM CENTRE,17787834,"111,000.00",,BWCHC014
Department of Health,BRIDGEWATER COMMUNITY HEALTHCARE,31-Oct-14,Service Charge,Chief Executive,CARE QUALITY COMMISSION,17787835,"71,750.00",,41890905
Department of Health,BRIDGEWATER COMMUNITY HEALTHCARE,31-Oct-14,Service Charge,Chief Executive,CARE QUALITY COMMISSION,17787836,"71,750.00",,41890997
Department of Health,BRIDGEWATER COMMUNITY HEALTHCARE,31-Oct-14,Drugs,Medicines Management - WARR,NHS BUSINESS SERVICES AUTHORITY,17787873,"82,453.95",654434729,1000041414
Department of Health,BRIDGEWATER COMMUNITY HEALTHCARE,31-Oct-14,Drugs,Medicines Management,NHS BUSINESS SERVICES AUTHORITY,17790550,"42,258.10",654434729,1000035699240610000000
Department of Health,BRIDGEWATER COMMUNITY HEALTHCARE,31-Oct-14,Drugs,Medical Directorate,NHS BUSINESS SERVICES AUTHORITY,17790550,"948,862.41",654434729,1000035699240610000000
Department of Health,BRIDGEWATER COMMUNITY HEALTHCARE,31-Oct-14,Staff Benefits Expenses,Org Development,WRIGHTINGTON WIGAN & LEIGH NHS FOUNDATION TRUST,17790622,"43,950.00",654951509,2110015258
Department of Health,BRIDGEWATER COMMUNITY HEALTHCARE,31-Oct-14,Travel & Subsistence,Healthcare Libraries Unit,NHS CHESHIRE AND MERSEYSIDE CSU,17801041,"33,250.00",,7310303662
Department of Health,BRIDGEWATER COMMUNITY HEALTHCARE,31-Oct-14,Grants,Healthcare Libraries Unit,NHS CHESHIRE AND MERSEYSIDE CSU,17807501,"68,672.00",,7310303661
Department of Health,BRIDGEWATER COMMUNITY HEALTHCARE,31-Oct-14,Lease Rents,Estate Services and Domestics (PCT recharge/LIFT) - HSH,COMMUNITY HEALTH PARTNERSHIPS,17820500,"38,689.87",,50370026
Department of Health,BRIDGEWATER COMMUNITY HEALTHCARE,31-Oct-14,Lease Rents,Estate Services and Domestics (PCT recharge/LIFT) - HSH,COMMUNITY HEALTH PARTNERSHIPS,17820502,"32,803.67",,50370048
Department of Health,BRIDGEWATER COMMUNITY HEALTHCARE,31-Oct-14,Lease Rents,Estate Services and Domestics (PCT recharge/LIFT) - HSH,COMMUNITY HEALTH PARTNERSHIPS,17820503,"41,664.54",,50370049
Department of Health,BRIDGEWATER COMMUNITY HEALTHCARE,31-Oct-14,Service Charge,81a&b Spencer House (clinic/ground floor),JONES LANG LASALLE LTD,17820505,"26,101.74",245894718,1157440
Department of Health,BRIDGEWATER COMMUNITY HEALTHCARE,31-Oct-14,Independent Sector,Offender Health - Risley,DR MW HUSSAIN,17820511,"43,750.00",,0404HMPRISLEY2014
Department of Health,BRIDGEWATER COMMUNITY HEALTHCARE,31-Oct-14,Grants,Healthcare Libraries Unit,WIRRAL UNIVERSITY TEACHING HOSPITAL NHS FOUNDATION TRUST,17820575,"39,484.00",654952016,8510009101
Department of Health,BRIDGEWATER COMMUNITY HEALTHCARE,31-Oct-14,Services Received - CSU's,Informatics - WARR,NHS CHESHIRE AND MERSEYSIDE CSU,17824211,"56,295.98",,7310303166
Department of Health,BRIDGEWATER COMMUNITY HEALTHCARE,31-Oct-14,Lease Rents,Estate Services and Domestics (PCT recharge/LIFT) - HSH,COMMUNITY HEALTH PARTNERSHIPS,17824212,"83,329.08",,50370028
Department of Health,BRIDGEWATER COMMUNITY HEALTHCARE,31-Oct-14,Lease Rents,Estate Services and Domestics (PCT recharge/LIFT) - HSH,COMMUNITY HEALTH PARTNERSHIPS,17824213,"545,870.02",,50370029
Department of Health,BRIDGEWATER COMMUNITY HEALTHCARE,31-Oct-14,Lease Rents,Estate Services and Domestics (PCT recharge/LIFT) - HSH,COMMUNITY HEALTH PARTNERSHIPS,17824214,"827,759.50",,50370030
Department of Health,BRIDGEWATER COMMUNITY HEALTHCARE,31-Oct-14,Lease Rents,Estate Services and Domestics (PCT recharge/LIFT) - HSH,COMMUNITY HEALTH PARTNERSHIPS,17824215,"402,886.93",,50370031
Department of Health,BRIDGEWATER COMMUNITY HEALTHCARE,31-Oct-14,Lease Rents,Estate Services and Domestics (PCT recharge/LIFT) - HSH,COMMUNITY HEALTH PARTNERSHIPS,17824216,"272,935.01",,50370050
Department of Health,BRIDGEWATER COMMUNITY HEALTHCARE,31-Oct-14,Lease Rents,Estate Services and Domestics (PCT recharge/LIFT) - HSH,COMMUNITY HEALTH PARTNERSHIPS,17824217,"413,879.75",,50370051
Department of Health,BRIDGEWATER COMMUNITY HEALTHCARE,31-Oct-14,Lease Rents,Estate Services and Domestics (PCT recharge/LIFT) - HSH,COMMUNITY HEALTH PARTNERSHIPS,17824218,"201,443.46",,50370052
Department of Health,BRIDGEWATER COMMUNITY HEALTHCARE,31-Oct-14,Drugs,Medicines Management - WARR,NHS BUSINESS SERVICES AUTHORITY,17824219,"79,366.46",654434729,1000041051
Department of Health,BRIDGEWATER COMMUNITY HEALTHCARE,31-Oct-14,Services Received - NHSTs,CDS St Helens,ST HELENS AND KNOWSLEY HOSPITALS NHS TRUST,17824221,"105,091.00",654943996,16750923
Department of Health,BRIDGEWATER COMMUNITY HEALTHCARE,31-Oct-14,Hlthcre-Foundation Trsts,Sexual Health,WARRINGTON & HALTON HOSPITALS NHS FOUNDATION TRUST,17824222,"62,202.00",654404741,15349242
Department of Health,BRIDGEWATER COMMUNITY HEALTHCARE,31-Oct-14,Grants,Healthcare Libraries Unit,EAST CHESHIRE NHS TRUST,17843009,"34,333.00",654919892,17477120
Department of Health,BRIDGEWATER COMMUNITY HEALTHCARE,31-Oct-14,Services Received - CSU's,Informatics - WARR,NHS CHESHIRE AND MERSEYSIDE CSU,17850969,"32,716.23",,7310303167
Department of Health,BRIDGEWATER COMMUNITY HEALTHCARE,31-Oct-14,Lease Rents,Castlefields HC,COMMUNITY HEALTH PARTNERSHIPS,17850983,"34,403.71",,50371965
Department of Health,BRIDGEWATER COMMUNITY HEALTHCARE,31-Oct-14,Lease Rents,Garswood HC,COMMUNITY HEALTH PARTNERSHIPS,17850984,"27,768.31",,50371966
Department of Health,BRIDGEWATER COMMUNITY HEALTHCARE,31-Oct-14,Other Clinical Costs,Out of Hours Medical Services,CO-OPERATIVE PHARMACY,17851010,"28,325.00",,MI00001506
Department of Health,BRIDGEWATER COMMUNITY HEALTHCARE,31-Oct-14,Staff Benefits Expenses,Org Development,COMPUTERSHARE VOUCHER SERVICES,17851063,"25,337.35",720707460,C0001907847
Department of Health,BRIDGEWATER COMMUNITY HEALTHCARE,31-Oct-14,Lease Rents,Estate Services and Domestics (PCT recharge/LIFT) - HSH,COMMUNITY HEALTH PARTNERSHIPS,17856925,"65,607.34",,50370027
Department of Health,BRIDGEWATER COMMUNITY HEALTHCARE,31-Oct-14,Lease Rents,Lowe House,COMMUNITY HEALTH PARTNERSHIPS,17856935,"226,977.89",,50371967
Department of Health,BRIDGEWATER COMMUNITY HEALTHCARE,31-Oct-14,Lease Rents,Newton Community Hospital,COMMUNITY HEALTH PARTNERSHIPS,17856936,"300,562.64",,50371968
Department of Health,BRIDGEWATER COMMUNITY HEALTHCARE,31-Oct-14,Lease Rents,Widnes HCRC,COMMUNITY HEALTH PARTNERSHIPS,17856937,"122,036.79",,50371969
